[Event "FRA-chT Top 12 2019"]
[Site "Brest"]
[Date "2019.05.26"]
[Round "9.1"]
[White "Karthikeyan, Murali"]
[Black "Balogh, Csaba"]
[Result "1/2-1/2"]
[ECO "C65"]
[WhiteElo "2596"]
[BlackElo "2598"]
[Annotator "ChessBase"]
[PlyCount "66"]
[EventDate "2019.05.18"]
[EventType "team-tourn"]
[EventCountry "FRA"]
[SourceTitle "playchess.com"]
[Source "ChessBase"]
[SourceQuality "1"]
[TimeControl "40/5400+30:1800+30"]

1. e4 {[%emt 0:00:00]} e5 {[%emt 0:00:00]} 2. Nf3 {[%emt 0:00:00]} Nc6 {[%emt 0:00:00]} 3. Bb5 {[%emt 0:00:00]} Nf6 {[%emt 0:00:00]} 4. d3 {[%emt 0:00:34]} Bc5 {[%emt 0:00:07]} 5. Bxc6 {[%emt 0:00:24]} dxc6 {[%emt 0:00:06]} 6. Nbd2 {[%emt 0:00:11]} Be6 {[%emt 0:02:27]} 7. O-O {[%emt 0:00:59]} Bd6 {[%emt 0:02:47]} 8. b3 {[%emt 0:01:48]} Qe7 {[%emt 0:04:14]} 9. Nc4 {[%emt 0:04:26]} Nd7 {[%emt 0:01:48]} 10. Bg5 {[%emt 0:09:39]} f6 {[%emt 0:00:45]} 11. Bd2 {[%emt 0:00:17]} O-O-O {[%emt 0:17:29]} 12. Rb1 {[%emt 0:10:18]} h5 {[%emt 0:09:19]} 13. Ne3 {[%emt 0:04:21]} g5 {[%emt 0:06:35]} 14. b4 {[%emt 0:01:53]} c5 {[%emt 0:04:07]} 15. c4 {[%emt 0:15:01]} cxb4 {[%emt 0:01:25]} 16. Qa4 {[%emt 0:02:30]} Kb8 {[%emt 0:09:11]} 17. Nd5 {[%emt 0:07:03]} Nb6 {[%emt 0:01:50]} 18. Qa5 {[%emt 0:07:21]} Nxd5 {[%emt 0:00:31]} 19. exd5 {[%emt 0:06:49]} b6 {[%emt 0:18:07]} 20. Bxb4 {[%emt 0:00:20]} Bxb4 {[%emt 0:00:13]} 21. Rxb4 {[%emt 0:01:47]} Ka8 {[%emt 0:00:11]} 22. Qa3 {[%emt 0:01:16]} Bc8 {[%emt 0:08:11]} 23. Rfb1 {[%emt 0:12:32]} Bb7 {[%emt 0:00:05]} 24. d4 {[%emt 0:04:36]} g4 {[%emt 0:02:47]} 25. c5 {[%emt 0:03:09]} gxf3 {[%emt 0:01:50]} 26. Ra4 {[%emt 0:00:09]} Qh7 {[%emt 0:02:11]} 27. Rxa7+ {[%emt 0:01:21]} Kb8 {[%emt 0:00:01]} 28. Rc1 {[%emt 0:00:29]} bxc5 {[%emt 0:02:43]} 29. dxc5 {[%emt 0:04:29]} Rxd5 {[%emt 0:00:04]} 30. Rxb7+ {[%emt 0:00:30]} Kxb7 {[%emt 0:00:10]} 31. Qb3+ {[%emt 0:00:14]} Kc6 {[%emt 0:00:54]} 32. Qa4+ {[%emt 0:00:14]} Kb7 {[%emt 0:00:04]} 33. Qb3+ {[%emt 0:00:30]} Kc6 {[%emt 0:00:27]} 1/2-1/2

[Event "FRA-chT Top 12 2019"]
[Site "Brest"]
[Date "2019.05.26"]
[Round "9.1"]
[White "Cossin, Sebastien"]
[Black "Kosten, Anthony C."]
[Result "1-0"]
[ECO "A50"]
[WhiteElo "2494"]
[BlackElo "2419"]
[Annotator "ChessBase"]
[PlyCount "101"]
[EventDate "2019.05.18"]
[EventType "team-tourn"]
[EventCountry "FRA"]
[SourceTitle "playchess.com"]
[Source "ChessBase"]
[SourceQuality "1"]
[TimeControl "40/5400+30:1800+30"]

1. d4 {[%emt 0:00:00]} Nf6 {[%emt 0:00:00]} 2. c4 {[%emt 0:00:00]} b6 {[%emt 0:00:11]} 3. Nc3 {[%emt 0:00:40]} Bb7 {[%emt 0:00:07]} 4. f3 {[%emt 0:07:38]} d5 {[%emt 0:00:44]} 5. cxd5 {[%emt 0:02:16]} Nxd5 {[%emt 0:00:07]} 6. e4 {[%emt 0:02:17]} Nxc3 {[%emt 0:02:20]} 7. bxc3 {[%emt 0:00:03]} e5 {[%emt 0:00:11]} 8. Bb5+ {[%emt 0:19:12]} Nd7 {[%emt 0:11:23]} 9. Ne2 {[%emt 0:02:49]} a6 {[%emt 0:03:44]} 10. Bxd7+ {[%emt 0:06:34]} Qxd7 {[%emt 0:00:09]} 11. dxe5 {[%emt 0:00:22]} Qe6 {[%emt 0:19:55]} 12. Bf4 {[%emt 0:01:28]} Bc5 {[%emt 0:02:14]} 13. Nd4 {[%emt 0:08:01]} Qc4 {[%emt 0:18:03]} 14. Qb3 {[%emt 0:02:06]} Qxb3 {[%emt 0:00:00]} 15. axb3 {[%emt 0:01:48]} a5 {[%emt 0:04:41]} 16. e6 {[%emt 0:06:01]} f6 {[%emt 0:15:07]} 17. Bxc7 {[%emt 0:04:18]} g6 {[%emt 0:00:44]} 18. Bg3 {[%emt 0:03:33]} Ke7 {[%emt 0:01:26]} 19. Bf2 {[%emt 0:01:03]} Rhc8 {[%emt 0:02:46]} 20. O-O {[%emt 0:01:17]} Bd6 {[%emt 0:06:04]} 21. Nb5 {[%emt 0:03:45]} Bc5 {[%emt 0:02:31]} 22. Rfc1 {[%emt 0:03:13]} Kxe6 {[%emt 0:00:58]} 23. c4 {[%emt 0:01:12]} Bc6 {[%emt 0:03:02]} 24. Nc3 {[%emt 0:00:41]} f5 {[%emt 0:01:37]} 25. Nd5 {[%emt 0:02:21]} Bxd5 {[%emt 0:02:30]} 26. exd5+ {[%emt 0:03:04]} Kd6 {[%emt 0:00:06]} 27. Kf1 {[%emt 0:00:58]} Bxf2 {[%emt 0:01:10]} 28. Kxf2 {[%emt 0:00:03]} b5 {[%emt 0:00:36]} 29. Ke3 {[%emt 0:01:32]} Kc5 {[%emt 0:00:01]} 30. cxb5+ {[%emt 0:05:07]} Kxd5 {[%emt 0:00:43]} 31. Rxc8 {[%emt 0:01:15]} Rxc8 {[%emt 0:00:02]} 32. Kd3 {[%emt 0:04:14]} Ra8 {[%emt 0:00:27]} 33. Ra4 {[%emt 0:00:54]} Rb8 {[%emt 0:01:09]} 34. Rxa5 {[%emt 0:00:11]} Kc5 {[%emt 0:00:28]} 35. Ra7 {[%emt 0:00:59]} Rd8+ {[%emt 0:00:48]} 36. Ke3 {[%emt 0:00:49]} Re8+ {[%emt 0:00:58]} 37. Kf2 {[%emt 0:02:16]} h6 {[%emt 0:00:19]} 38. Ra6 {[%emt 0:01:19]} Rg8 {[%emt 0:00:17]} 39. h4 {[%emt 0:00:23]} Kxb5 {[%emt 0:00:17]} 40. Rf6 {[%emt 0:00:07]} Kb4 {[%emt 0:00:51]} 41. h5 {[%emt 0:32:18]} gxh5 {[%emt 0:30:20]} 42. Rxf5 {[%emt 0:00:00]} Kxb3 {[%emt 0:00:00]} 43. Rxh5 {[%emt 0:00:00]} Rg6 {[%emt 0:00:00]} 44. Rc5 {[%emt 0:00:00]} Kb4 {[%emt 0:00:00]} 45. Rc1 {[%emt 0:00:00]} Kb5 {[%emt 0:00:00]} 46. g4 {[%emt 0:00:00]} Kb6 {[%emt 0:00:00]} 47. Kg3 {[%emt 0:00:00]} h5 {[%emt 0:00:00]} 48. Kh4 {[%emt 0:00:00]} hxg4 {[%emt 0:00:00]} 49. fxg4 {[%emt 0:00:00]} Rh6+ {[%emt 0:00:00]} 50. Kg5 {[%emt 0:00:00]} Rh8 {[%emt 0:00:00]} 51. Kf6 {[%emt 0:00:00]} 1-0

[Event "FRA-chT Top 12 2019"]
[Site "Brest"]
[Date "2019.05.26"]
[Round "9.2"]
[White "Bacrot, Etienne"]
[Black "Oleksiyenko, Mykhaylo"]
[Result "1/2-1/2"]
[ECO "C50"]
[WhiteElo "2678"]
[BlackElo "2595"]
[Annotator "RC"]
[PlyCount "54"]
[EventDate "2019.05.18"]
[EventType "team-tourn"]
[EventCountry "FRA"]
[SourceTitle "playchess.com"]
[Source "ChessBase"]
[SourceQuality "1"]
[TimeControl "40/5400+30:1800+30"]

1. e4 {[%emt 0:00:00]} e5 {[%emt 0:00:00]} 2. Nf3 {[%emt 0:00:00]} Nc6 {[%emt 0:00:00]} 3. Bc4 {[%emt 0:00:26]} Bc5 {[%emt 0:00:00]} 4. d3 {[%emt 0:01:03]} Nf6 {[%emt 0:00:32]} 5. O-O {[%emt 0:00:23]} d6 {[%emt 0:00:44]} 6. c3 {[%emt 0:00:41]} a5 {[%emt 0:00:24]} 7. Re1 {[%emt 0:00:20]} O-O {[%emt 0:00:13]} 8. Nbd2 {[%emt 0:00:21]} Be6 {[%emt 0:00:45]} 9. Bb5 {[%emt 0:00:08]} Qb8 {[%emt 0:01:11]} 10. Nf1 {[%emt 0:00:14]} Qa7 {[%emt 0:00:19]} 11. Be3 {[%emt 0:00:06]} Bxe3 {[%emt 0:03:01]} 12. Nxe3 {[%emt 0:00:07]} Ne7 {[%emt 0:03:28]} 13. a4 {[%emt 0:02:20]} c6 {[%emt 0:05:50]} 14. Bc4 {[%emt 0:01:05]} d5 {[%emt 0:00:22]} 15. exd5 {[%emt 0:02:11]} cxd5 {[%emt 0:00:07]} 16. Bb5 {[%emt 0:00:18]} Ng6 {[%emt 0:03:44]} 17. Nf1 {[%emt 0:02:21]} Ng4 {[%emt 0:10:42]} 18. Qd2 {[%emt 0:08:53]} f6 {[%emt 0:01:23]} 19. Nd4 {[%emt 0:11:29]} Bc8 {[%emt 0:03:43]} 20. Nf3 {[%emt 0:11:30]} Nh6 {[%emt 0:01:52]} 21. h3 {[%emt 0:01:05]} Nf7 {[%emt 0:01:03]} 22. b4 {[%emt 0:06:23]} axb4 {[%emt 0:04:54]} 23. c4 {[%emt 0:00:13]} dxc4 {[%emt 0:11:24]} 24. Bxc4 {[%emt 0:02:19]} Bd7 {[%emt 0:06:49]} 25. Qxb4 {[%emt 0:01:34]} Bc6 {[%emt 0:00:28]} 26. N1d2 {[%emt 0:00:32]} Qa5 {[%emt 0:08:06]} 27. Reb1 {[%emt 0:19:03]} Qxb4 {[%emt 0:06:17]} 1/2-1/2

[Event "FRA-chT Top 12 2019"]
[Site "Brest"]
[Date "2019.05.26"]
[Round "9.2"]
[White "Postny, Evgeny"]
[Black "Praggnanandhaa R"]
[Result "1/2-1/2"]
[ECO "E04"]
[WhiteElo "2603"]
[BlackElo "2536"]
[Annotator "ChessBase"]
[PlyCount "66"]
[EventDate "2019.05.18"]
[EventType "team-tourn"]
[EventCountry "FRA"]
[SourceTitle "playchess.com"]
[Source "ChessBase"]
[SourceQuality "1"]
[TimeControl "40/5400+30:1800+30"]

1. d4 {[%emt 0:00:00]} Nf6 {[%emt 0:00:23]} 2. c4 {[%emt 0:00:00]} e6 {[%emt 0:00:05]} 3. g3 {[%emt 0:00:00]} d5 {[%emt 0:00:07]} 4. Bg2 {[%emt 0:00:00]} dxc4 {[%emt 0:00:10]} 5. Nf3 {[%emt 0:00:00]} c5 {[%emt 0:00:22]} 6. O-O {[%emt 0:00:13]} Nc6 {[%emt 0:00:07]} 7. dxc5 {[%emt 0:00:55]} Qxd1 {[%emt 0:00:33]} 8. Rxd1 {[%emt 0:00:04]} Bxc5 {[%emt 0:00:06]} 9. Nbd2 {[%emt 0:00:05]} c3 {[%emt 0:00:10]} 10. bxc3 {[%emt 0:00:07]} O-O {[%emt 0:00:18]} 11. Nb3 {[%emt 0:00:11]} Be7 {[%emt 0:00:22]} 12. Nfd4 {[%emt 0:00:38]} Bd7 {[%emt 0:00:25]} 13. Nxc6 {[%emt 0:02:08]} Bxc6 {[%emt 0:00:07]} 14. Bxc6 {[%emt 0:00:05]} bxc6 {[%emt 0:00:03]} 15. c4 {[%emt 0:00:08]} Rfb8 {[%emt 0:06:25]} 16. Bd2 {[%emt 0:06:44]} Ne4 {[%emt 0:10:15]} 17. Ba5 {[%emt 0:25:05]} Rb7 {[%emt 0:18:07]} 18. Rd3 {[%emt 0:22:31]} Nc5 {[%emt 0:02:54]} 19. Nxc5 {[%emt 0:02:10]} Bxc5 {[%emt 0:00:03]} 20. Rad1 {[%emt 0:00:14]} Kf8 {[%emt 0:02:55]} 21. Rb3 {[%emt 0:15:32]} Rab8 {[%emt 0:03:40]} 22. Rdd3 {[%emt 0:01:32]} Ke8 {[%emt 0:09:20]} 23. Kf1 {[%emt 0:07:54]} Rxb3 {[%emt 0:05:35]} 24. axb3 {[%emt 0:00:04]} Bb4 {[%emt 0:00:40]} 25. Bc7 {[%emt 0:02:35]} Rb7 {[%emt 0:02:59]} 26. Bf4 {[%emt 0:00:35]} a5 {[%emt 0:03:47]} 27. Be3 {[%emt 0:05:42]} Rb8 {[%emt 0:07:20]} 28. Bf4 {[%emt 0:01:23]} Ra8 {[%emt 0:03:21]} 29. Bd6 {[%emt 0:02:16]} Bxd6 {[%emt 0:08:28]} 30. Rxd6 {[%emt 0:00:06]} Rb8 {[%emt 0:00:14]} 31. Rxc6 {[%emt 0:00:27]} Rxb3 {[%emt 0:00:10]} 32. Ra6 {[%emt 0:00:06]} Rc3 {[%emt 0:00:23]} 33. Rxa5 {[%emt 0:00:06]} Rxc4 {[%emt 0:00:06]} 1/2-1/2

[Event "FRA-chT Top 12 2019"]
[Site "Brest"]
[Date "2019.05.26"]
[Round "9.2"]
[White "Wagner, Dennis"]
[Black "Heimann, Andreas"]
[Result "1/2-1/2"]
[ECO "A06"]
[WhiteElo "2578"]
[BlackElo "2627"]
[Annotator "ChessBase"]
[PlyCount "111"]
[EventDate "2019.05.18"]
[EventType "team-tourn"]
[EventCountry "FRA"]
[SourceTitle "playchess.com"]
[Source "ChessBase"]
[SourceQuality "1"]
[TimeControl "40/5400+30:1800+30"]

1. Nf3 {[%emt 0:00:00]} d5 {[%emt 0:00:00]} 2. g3 {[%emt 0:00:00]} g6 {[%emt 0:00:00]} 3. Bg2 {[%emt 0:00:00]} Bg7 {[%emt 0:00:00]} 4. d4 {[%emt 0:00:00]} Nf6 {[%emt 0:00:00]} 5. O-O {[%emt 0:00:00]} O-O {[%emt 0:00:01]} 6. c4 {[%emt 0:00:00]} dxc4 {[%emt 0:00:24]} 7. Na3 {[%emt 0:00:05]} Na6 {[%emt 0:00:08]} 8. Nxc4 {[%emt 0:00:07]} c5 {[%emt 0:00:04]} 9. b3 {[%emt 0:00:14]} b5 {[%emt 0:00:05]} 10. Nfe5 {[%emt 0:29:18]} Be6 {[%emt 0:00:19]} 11. Nc6 {[%emt 0:05:13]} Qe8 {[%emt 0:00:14]} 12. N4a5 {[%emt 0:05:13]} Bd5 {[%emt 0:00:07]} 13. Bxd5 {[%emt 0:12:36]} Nxd5 {[%emt 0:00:29]} 14. dxc5 {[%emt 0:00:41]} e6 {[%emt 0:21:30]} 15. e4 {[%emt 0:24:59]} Ne7 {[%emt 0:00:17]} 16. Nxe7+ {[%emt 0:00:04]} Qxe7 {[%emt 0:00:04]} 17. Bf4 {[%emt 0:01:31]} Rfc8 {[%emt 0:05:57]} 18. Rc1 {[%emt 0:06:05]} Nxc5 {[%emt 0:18:45]} 19. Bd6 {[%emt 0:00:06]} Qd8 {[%emt 0:00:48]} 20. Rxc5 {[%emt 0:01:17]} Qxa5 {[%emt 0:01:18]} 21. Qc2 {[%emt 0:00:08]} Rxc5 {[%emt 0:13:21]} 22. Qxc5 {[%emt 0:00:02]} Qb6 {[%emt 0:00:06]} 23. Rc1 {[%emt 0:01:51]} Bd4 {[%emt 0:03:05]} 24. Qxb6 {[%emt 0:00:08]} axb6 {[%emt 0:01:31]} 25. e5 {[%emt 0:02:21]} Kg7 {[%emt 0:10:14]} 26. Rc2 {[%emt 0:00:01]} b4 {[%emt 0:01:30]} 27. Kg2 {[%emt 0:08:14]} g5 {[%emt 0:11:29]} 28. f4 {[%emt 0:00:54]} gxf4 {[%emt 0:03:26]} 29. gxf4 {[%emt 0:00:01]} Bc5 {[%emt 0:00:43]} 30. Kf3 {[%emt 0:02:11]} f6 {[%emt 0:02:14]} 31. exf6+ {[%emt 0:00:55]} Kxf6 {[%emt 0:00:06]} 32. Be5+ {[%emt 0:00:48]} Kf5 {[%emt 0:02:55]} 33. Rd2 {[%emt 0:00:16]} Ra7 {[%emt 0:00:27]} 34. h3 {[%emt 0:00:41]} Be7 {[%emt 0:01:32]} 35. Rg2 {[%emt 0:00:30]} Bf6 {[%emt 0:01:30]} 36. Bxf6 {[%emt 0:00:09]} Kxf6 {[%emt 0:00:05]} 37. Ke4 {[%emt 0:00:02]} Rc7 {[%emt 0:01:12]} 38. Rd2 {[%emt 0:00:38]} Rc3 {[%emt 0:01:29]} 39. Rd4 {[%emt 0:00:10]} Rc2 {[%emt 0:00:14]} 40. Rxb4 {[%emt 0:00:04]} Rxa2 {[%emt 0:00:04]} 41. Rxb6 {[%emt 0:30:11]} Rh2 {[%emt 0:02:25]} 42. f5 {[%emt 0:00:00]} Rxh3 {[%emt 0:01:21]} 43. fxe6 {[%emt 0:00:00]} h5 {[%emt 0:02:35]} 44. b4 {[%emt 0:00:00]} h4 {[%emt 0:01:27]} 45. Kd5 {[%emt 0:00:00]} Rd3+ {[%emt 0:02:00]} 46. Kc4 {[%emt 0:00:00]} Rd1 {[%emt 0:01:18]} 47. e7+ {[%emt 0:00:00]} Kxe7 {[%emt 0:00:06]} 48. Rh6 {[%emt 0:00:00]} Kd7 {[%emt 0:01:03]} 49. Kc5 {[%emt 0:00:00]} Kc7 {[%emt 0:00:29]} 50. Rh7+ {[%emt 0:00:00]} Rd7 {[%emt 0:00:19]} 51. Rxh4 {[%emt 0:00:00]} Rg7 {[%emt 0:00:11]} 52. Rh5 {[%emt 0:00:00]} Kb7 {[%emt 0:00:07]} 53. b5 {[%emt 0:00:00]} Rc7+ {[%emt 0:00:10]} 54. Kb4 {[%emt 0:00:00]} Rc1 {[%emt 0:00:20]} 55. Rh7+ {[%emt 0:00:00]} Kb6 {[%emt 0:00:09]} 56. Rh6+ {[%emt 0:00:00]} 1/2-1/2

[Event "FRA-chT Top 12 2019"]
[Site "Brest"]
[Date "2019.05.26"]
[Round "9.2"]
[White "Hamitevici, Vladimir"]
[Black "Van Wely, Loek"]
[Result "1-0"]
[ECO "B22"]
[WhiteElo "2476"]
[BlackElo "2600"]
[Annotator "ChessBase"]
[PlyCount "57"]
[EventDate "2019.05.18"]
[EventType "team-tourn"]
[EventCountry "FRA"]
[SourceTitle "playchess.com"]
[Source "ChessBase"]
[SourceQuality "1"]
[TimeControl "40/5400+30:1800+30"]

1. e4 {[%emt 0:00:23]} c5 {[%emt 0:00:08]} 2. c3 {[%emt 0:00:34]} Nf6 {[%emt 0:00:41]} 3. e5 {[%emt 0:00:08]} Nd5 {[%emt 0:00:08]} 4. Nf3 {[%emt 0:00:46]} e6 {[%emt 0:05:31]} 5. Bc4 {[%emt 0:01:26]} d6 {[%emt 0:01:15]} 6. d4 {[%emt 0:00:16]} cxd4 {[%emt 0:00:57]} 7. cxd4 {[%emt 0:00:07]} Be7 {[%emt 0:01:31]} 8. O-O {[%emt 0:01:24]} O-O {[%emt 0:01:19]} 9. Qe2 {[%emt 0:06:15]} b6 {[%emt 0:12:20]} 10. Qe4 {[%emt 0:13:35]} Ba6 {[%emt 0:16:27]} 11. Bxa6 {[%emt 0:03:41]} Nxa6 {[%emt 0:00:12]} 12. h4 {[%emt 0:00:03]} dxe5 {[%emt 0:07:09]} 13. dxe5 {[%emt 0:02:23]} Nc5 {[%emt 0:01:34]} 14. Qg4 {[%emt 0:00:07]} Re8 {[%emt 0:00:41]} 15. Bg5 {[%emt 0:04:19]} Bxg5 {[%emt 0:08:31]} 16. hxg5 {[%emt 0:00:04]} Nd3 {[%emt 0:03:16]} 17. Rd1 {[%emt 0:00:11]} Nxb2 {[%emt 0:02:32]} 18. Rd4 {[%emt 0:02:31]} Qc7 {[%emt 0:02:50]} 19. Nbd2 {[%emt 0:01:28]} Nc3 {[%emt 0:07:52]} 20. Rb4 {[%emt 0:02:56]} Nd3 {[%emt 0:04:39]} 21. Rc4 {[%emt 0:02:11]} Ne2+ {[%emt 0:01:51]} 22. Kf1 {[%emt 0:02:07]} Qb8 {[%emt 0:00:05]} 23. Ne4 {[%emt 0:10:29]} Rc8 {[%emt 0:13:43]} 24. Nf6+ {[%emt 0:01:55]} Kh8 {[%emt 0:00:26]} 25. Qh5 {[%emt 0:04:43]} h6 {[%emt 0:01:04]} 26. Qxf7 {[%emt 0:00:06]} Rxc4 {[%emt 0:05:03]} 27. gxh6 {[%emt 0:00:06]} Qf8 {[%emt 0:00:33]} 28. hxg7+ {[%emt 0:00:07]} Qxg7 {[%emt 0:00:02]} 29. Qh5+ {[%emt 0:00:06]} 1-0

[Event "FRA-chT Top 12 2019"]
[Site "Brest"]
[Date "2019.05.26"]
[Round "9.2"]
[White "Cornette, Deimante"]
[Black "Chabanon, Jean-Luc"]
[Result "1/2-1/2"]
[ECO "B03"]
[WhiteElo "2433"]
[BlackElo "2437"]
[Annotator "NA RC"]
[PlyCount "74"]
[EventDate "2019.05.18"]
[EventType "team-tourn"]
[EventCountry "FRA"]
[SourceTitle "playchess.com"]
[Source "ChessBase"]
[SourceQuality "1"]
[TimeControl "40/5400+30:1800+30"]

1. e4 {[%emt 0:00:00]} Nf6 {[%emt 0:00:00]} 2. e5 {[%emt 0:00:00]} Nd5 {[%emt 0:00:00]} 3. d4 {[%emt 0:00:03]} d6 {[%emt 0:00:00]} 4. c4 {[%emt 0:01:22]} Nb6 {[%emt 0:00:00]} 5. exd6 {[%emt 0:00:23]} cxd6 {[%emt 0:00:07]} 6. Nc3 {[%emt 0:00:42]} g6 {[%emt 0:00:14]} 7. Be3 {[%emt 0:03:24]} Bg7 {[%emt 0:03:49]} 8. Rc1 {[%emt 0:00:11]} O-O {[%emt 0:00:15]} 9. b3 {[%emt 0:00:11]} Bf5 {[%emt 0:09:10]} 10. Be2 {[%emt 0:03:25]} d5 {[%emt 0:05:52]} 11. c5 {[%emt 0:00:34]} Nc8 {[%emt 0:04:21]} 12. Nf3 {[%emt 0:01:18]} Nc6 {[%emt 0:04:58]} 13. O-O {[%emt 0:00:18]} Bg4 {[%emt 0:01:39]} 14. b4 {[%emt 0:02:39]} a6 {[%emt 0:04:10]} 15. Qd2 {[%emt 0:21:15]} Bxf3 {[%emt 0:10:01]} 16. Bxf3 {[%emt 0:00:25]} e6 {[%emt 0:00:04]} 17. Ne2 {[%emt 0:05:29]} N8e7 {[%emt 0:00:40]} 18. g3 {[%emt 0:14:25]} Nf5 {[%emt 0:14:17]} 19. Bg2 {[%emt 0:02:17]} h5 {[%emt 0:07:52]} 20. Rfd1 {[%emt 0:02:26]} Nxe3 {[%emt 0:08:27]} 21. Qxe3 {[%emt 0:05:58]} Nxb4 {[%emt 0:11:09]} 22. Rb1 {[%emt 0:09:24]} Nc6 {[%emt 0:00:43]} 23. Rxb7 {[%emt 0:00:14]} Rb8 {[%emt 0:00:21]} 24. Qb3 {[%emt 0:12:32]} Na5 {[%emt 0:02:22]} 25. Rxb8 {[%emt 0:00:11]} Qxb8 {[%emt 0:00:07]} 26. Qa3 {[%emt 0:03:00]} Nc4 {[%emt 0:00:52]} 27. Qxa6 {[%emt 0:00:56]} Qb2 {[%emt 0:00:32]} 28. Bf1 {[%emt 0:00:50]} Rb8 {[%emt 0:04:41]} 29. Qa7 {[%emt 0:03:48]} Rb7 {[%emt 0:01:04]} 30. Qa8+ {[%emt 0:00:16]} Rb8 {[%emt 0:00:36]} 31. Qa7 {[%emt 0:00:50]} Rb7 {[%emt 0:00:26]} 32. Qa4 {[%emt 0:02:18]} Kh7 {[%emt 0:01:41]} 33. Qa6 {[%emt 0:02:44]} Rb8 {[%emt 0:02:41]} 34. Qa7 {[%emt 0:00:45]} Rb7 {[%emt 0:00:33]} 35. Qa6 {[%emt 0:00:08]} Rb8 {[%emt 0:00:36]} 36. Qa7 {[%emt 0:01:57]} Rb7 {[%emt 0:00:28]} 37. Qa6 {[%emt 0:00:11]} Rb8 1/2-1/2

[Event "FRA-chT Top 12 2019"]
[Site "Brest"]
[Date "2019.05.26"]
[Round "9.2"]
[White "Vallin, Guillaume"]
[Black "Movsesian, Sergei"]
[Result "0-1"]
[ECO "A05"]
[WhiteElo "2389"]
[BlackElo "2645"]
[Annotator "ChessBase"]
[PlyCount "80"]
[EventDate "2019.05.18"]
[EventType "team-tourn"]
[EventCountry "FRA"]
[SourceTitle "playchess.com"]
[Source "ChessBase"]
[SourceQuality "1"]
[TimeControl "40/5400+30:1800+30"]

1. Nf3 {[%emt 0:00:00]} Nf6 {[%emt 0:00:00]} 2. c4 {[%emt 0:00:10]} d6 {[%emt 0:01:38]} 3. d4 {[%emt 0:06:51]} Nbd7 {[%emt 0:01:17]} 4. Nc3 {[%emt 0:00:08]} g6 {[%emt 0:00:27]} 5. e3 {[%emt 0:03:49]} Bg7 {[%emt 0:03:03]} 6. Be2 {[%emt 0:00:06]} O-O {[%emt 0:01:01]} 7. O-O {[%emt 0:07:46]} e5 {[%emt 0:02:09]} 8. b3 {[%emt 0:12:06]} Re8 {[%emt 0:03:29]} 9. Bb2 {[%emt 0:02:26]} e4 {[%emt 0:02:07]} 10. Nd2 {[%emt 0:01:55]} Nf8 {[%emt 0:00:40]} 11. Qc2 {[%emt 0:04:31]} Bf5 {[%emt 0:08:21]} 12. Rae1 {[%emt 0:16:43]} h5 {[%emt 0:09:35]} 13. Qd1 {[%emt 0:17:49]} Bh6 {[%emt 0:03:57]} 14. d5 {[%emt 0:02:19]} N8d7 {[%emt 0:05:11]} 15. Nb5 {[%emt 0:01:18]} Ne5 {[%emt 0:01:32]} 16. Nd4 {[%emt 0:03:03]} Bg4 {[%emt 0:04:47]} 17. Qb1 {[%emt 0:00:22]} Qd7 {[%emt 0:03:45]} 18. Kh1 {[%emt 0:02:05]} Bg7 {[%emt 0:07:38]} 19. f3 {[%emt 0:02:14]} exf3 {[%emt 0:01:03]} 20. gxf3 {[%emt 0:00:11]} Bh3 {[%emt 0:00:32]} 21. Rg1 {[%emt 0:00:01]} c5 {[%emt 0:01:13]} 22. Nb5 {[%emt 0:07:54]} Re7 {[%emt 0:12:42]} 23. Qa1 {[%emt 0:03:34]} Rae8 {[%emt 0:01:46]} 24. Nxa7 {[%emt 0:00:46]} Bh6 {[%emt 0:05:23]} 25. Nf1 {[%emt 0:00:39]} h4 {[%emt 0:02:54]} 26. Nb5 {[%emt 0:00:12]} Nh5 {[%emt 0:00:31]} 27. Qd1 {[%emt 0:00:49]} Kh7 {[%emt 0:03:45]} 28. Bxe5 {[%emt 0:01:17]} Rxe5 {[%emt 0:00:15]} 29. f4 {[%emt 0:01:04]} Nxf4 {[%emt 0:00:29]} 30. exf4 {[%emt 0:00:07]} Bxf4 {[%emt 0:01:24]} 31. Bg4 {[%emt 0:00:20]} Rxe1 {[%emt 0:02:11]} 32. Bxd7 {[%emt 0:00:11]} Rxd1 {[%emt 0:00:36]} 33. Bxh3 {[%emt 0:00:19]} f5 {[%emt 0:03:33]} 34. Nc7 {[%emt 0:00:09]} Ree1 {[%emt 0:00:37]} 35. Ne6 {[%emt 0:01:15]} Be3 {[%emt 0:00:25]} 36. Kg2 {[%emt 0:01:29]} Bxg1 {[%emt 0:01:56]} 37. Kxg1 {[%emt 0:00:02]} Re2 {[%emt 0:01:15]} 38. Ng5+ {[%emt 0:00:59]} Kg7 {[%emt 0:00:30]} 39. Bg2 {[%emt 0:01:19]} Rxa2 {[%emt 0:00:33]} 40. Nf3 {[%emt 0:00:00]} Kf6 {[%emt 0:01:46]} 0-1

[Event "FRA-chT Top 12 2019"]
[Site "Brest"]
[Date "2019.05.26"]
[Round "9.3"]
[White "Oparin, Grigoriy"]
[Black "Payen, Arnaud"]
[Result "1-0"]
[ECO "A05"]
[WhiteElo "2624"]
[BlackElo "2358"]
[Annotator "ChessBase"]
[PlyCount "91"]
[EventDate "2019.05.18"]
[EventType "team-tourn"]
[EventCountry "FRA"]
[SourceTitle "playchess.com"]
[Source "ChessBase"]
[SourceQuality "1"]
[TimeControl "40/5400+30:1800+30"]

1. Nf3 Nf6 2. g3 g6 3. Bg2 Bg7 4. c4 O-O 5. O-O d6 6. Nc3 e5 7. d3 Nc6 8. Rb1 a5 9. a3 Nd4 10. Nxd4 exd4 11. Nb5 Ne8 12. e3 dxe3 13. Bxe3 c6 14. Nc3 Nf6 15. Qb3 Bf5 16. Ne4 Qd7 17. Bf4 a4 18. Qb4 d5 19. Nc5 Qc8 20. Rbd1 Rd8 21. Nxb7 Bf8 22. c5 Rd7 23. Nd6 Bxd6 24. Bxd6 Rb7 25. Qd4 Ne8 26. Bf4 Ng7 27. Be5 Qf8 28. Rfe1 Ne6 29. Qh4 g5 30. Qh5 f6 31. Bc3 Nxc5 32. Qf3 Bg6 33. Bb4 Rab8 34. h4 Rxb4 35. axb4 Rxb4 36. h5 g4 37. Qe2 Bxh5 38. d4 Nb3 39. Qe6+ Kg7 40. Qxc6 Nxd4 41. Qc7+ Kh8 42. Bxd5 Nb5 43. Qd7 Rxb2 44. Rc1 Nd6 45. Rc6 Ne8 46. Rc8 1-0